fUSD/lending_fUSD_20240220
["ID","MTS","AMOUNT","RATE_DAILY","PERIOD"]
[314541688,1708413034207,-500.0,0.00035616,2]
[314541689,1708413034216,-500.0,0.00035616,2]
[314541690,1708413034225,-500.0,0.00035616,2]
[314541691,1708413034234,-500.0,0.00035616,2]
[314541692,1708413034244,-612.63053354,0.00035616,2]
[314541693,1708413034253,-470.62136611,0.00035616,2]
[314541694,1708413034262,-500.0,0.00035616,2]
[314541695,1708413034272,-500.0,0.00035616,2]
[314541696,1708413034281,-500.0,0.00035616,2]
[314541697,1708413034291,-500.0,0.00035616,2]
[314541698,1708413034302,-500.0,0.00035616,2]
[314541699,1708413034311,-589.90635986,0.00035616,2]
[314541700,1708413034320,-500.0,0.00035616,2]
[314541701,1708413034330,-500.0,0.00035616,2]
[314541702,1708413034339,-500.0,0.00035616,2]
[314541703,1708413034348,-500.0,0.00035616,2]
[314541704,1708413034358,-500.0,0.00035616,2]
[314541705,1708413034367,-500.0,0.00035616,2]
[314541706,1708413034376,-500.0,0.00035616,2]
[314541707,1708413034385,-500.0,0.00035616,2]
[314541708,1708413034395,-500.0,0.00035616,2]
[314541709,1708413034404,-500.0,0.00035616,2]
[314541710,1708413034413,-500.0,0.00035616,2]
[314541711,1708413034422,-500.0,0.00035616,2]
[314541712,1708413034431,-500.0,0.00035616,2]
[314541713,1708413034441,-500.0,0.00035616,2]
[314541714,1708413034450,-559.46538766,0.00035616,2]
[314541715,1708413034459,-500.0,0.00035616,2]
[314541716,1708413034468,-500.0,0.00035616,2]
[314541717,1708413034477,-500.0,0.00035616,2]
[314541718,1708413034486,-500.0,0.00035616,2]
[314541719,1708413034495,-515.73828147,0.00035616,2]
[314541720,1708413034504,-500.0,0.00035616,2]
[314541721,1708413034513,-500.0,0.00035616,2]
[314541722,1708413034522,-500.0,0.00035616,2]
[314541723,1708413034531,-500.0,0.00035616,2]
[314541724,1708413034540,-500.0,0.00035616,2]
[314541725,1708413034548,-500.0,0.00035616,2]
[314541726,1708413034557,-500.0,0.00035616,2]
[314541727,1708413034566,-500.0,0.00035616,2]
[314541728,1708413034575,-500.0,0.00035616,2]
[314541729,1708413034584,-500.0,0.00035616,2]
[314541730,1708413034593,-500.0,0.00035616,2]
[314541731,1708413034602,-500.0,0.00035616,2]
[314541732,1708413034612,-150.0,0.00035616,2]
[314541733,1708413034621,-500.0,0.00035616,2]
[314541734,1708413034630,-500.0,0.00035616,2]
[314541735,1708413034640,-500.0,0.00035616,2]
[314541736,1708413034649,-500.0,0.00035616,2]
[314541737,1708413034658,-500.0,0.00035616,2]
[314541738,1708413034666,-177.79082967,0.00035616,2]
[314541739,1708413034676,-500.0,0.00035616,2]
[314541740,1708413034685,-500.0,0.00035616,2]
[314541741,1708413034694,-500.0,0.00035616,2]
[314541742,1708413034703,-500.0,0.00035616,2]
[314541743,1708413034712,-500.0,0.00035616,2]
[314541744,1708413034721,-500.0,0.00035616,2]
[314541745,1708413034731,-500.0,0.00035616,2]
[314541746,1708413034740,-500.0,0.00035616,2]
[314541747,1708413034749,-500.0,0.00035616,2]
[314541748,1708413034758,-500.0,0.00035616,2]
[314541749,1708413034767,-500.0,0.00035616,2]
[314541750,1708413034777,-500.0,0.00035616,2]
[314541751,1708413034786,-500.0,0.00035616,2]
[314541752,1708413034795,-306.24793797,0.00035616,2]
[314541753,1708413034805,-500.0,0.00035616,2]
[314541754,1708413034814,-484.2960887,0.00035616,2]
[314541755,1708413034833,-15.7039113,0.00035616,2]
[314541756,1708413034842,-500.0,0.00035616,2]
[314541757,1708413034851,-500.0,0.00035616,2]
[314541758,1708413034861,-167.94228651,0.00035616,2]
[314541759,1708413034872,-332.05771349,0.00035616,2]
[314541760,1708413034881,-248.71099266,0.00035616,2]
[314541761,1708413034892,-251.28900734,0.00035616,2]
[314541762,1708413034901,-500.0,0.00035616,2]
[314541763,1708413034910,-500.0,0.00035616,2]
[314541764,1708413034919,-252.84344541,0.00035616,2]
[314541765,1708413034930,-247.15655459,0.00035616,2]
[314541766,1708413034939,-500.0,0.00035616,2]
[314541767,1708413034948,-105.43557739,0.00035616,2]
[314541769,1708413038148,-394.56442261,0.00035616,2]
[314541770,1708413038158,-500.0,0.00035616,2]
[314541771,1708413038169,-500.0,0.00035616,2]
[314541772,1708413038179,-500.0,0.00035616,2]
[314541773,1708413038189,-500.0,0.00035616,2]
[314541774,1708413038198,-500.0,0.00035616,2]
[314541775,1708413038207,-500.0,0.00035616,2]
[314541776,1708413038217,-500.0,0.00035616,2]
[314541777,1708413038226,-500.0,0.00035616,2]
[314541778,1708413038236,-207.10980001,0.00035616,2]
[314541779,1708413038245,-500.0,0.00035616,2]
[314541780,1708413038255,-500.0,0.00035616,2]
[314541781,1708413038264,-500.0,0.00035616,2]
[314541782,1708413038273,-521.77551942,0.00035616,2]
[314541783,1708413038283,-500.0,0.00035616,2]
[314541784,1708413038292,-500.0,0.00035616,2]
[314541785,1708413038301,-500.0,0.00035616,2]
[314541786,1708413038310,-500.0,0.00035616,2]
[314541787,1708413038319,-500.0,0.00035616,2]
[314541788,1708413038329,-500.0,0.00035616,2]
[314541789,1708413038338,-500.0,0.00035616,2]
[314541790,1708413038347,-500.0,0.00035616,2]
[314541791,1708413038356,-500.0,0.00035616,2]
[314541792,1708413038367,-500.0,0.00035616,2]
[314541793,1708413038377,-500.0,0.00035616,2]
[314541794,1708413038386,-500.0,0.00035616,2]
[314541795,1708413038396,-500.0,0.00035616,2]
[314541796,1708413038405,-500.0,0.00035616,2]
[314541797,1708413038415,-500.0,0.00035616,2]
[314541798,1708413038425,-500.0,0.00035616,2]
[314541799,1708413038435,-500.0,0.00035616,2]
[314541800,1708413038445,-500.0,0.00035616,2]
[314541801,1708413038456,-500.0,0.00035616,2]
[314541802,1708413038466,-500.0,0.00035616,2]
[314541803,1708413038476,-500.0,0.00035616,2]
[314541804,1708413038487,-500.0,0.00035616,2]
[314541805,1708413038498,-500.0,0.00035616,2]
[314541806,1708413038507,-500.0,0.00035616,2]
[314541807,1708413038518,-500.0,0.00035616,2]
[314541808,1708413038528,-500.0,0.00035616,2]
[314541809,1708413038537,-522.38,0.00035616,2]
[314541810,1708413038547,-500.0,0.00035616,2]
[314541811,1708413038557,-500.0,0.00035616,2]
[314541812,1708413038566,-500.0,0.00035616,2]
[314541813,1708413038575,-500.0,0.00035616,2]
[314541814,1708413038584,-500.0,0.00035616,2]
[314541815,1708413038596,-500.0,0.00035616,2]
[314541816,1708413038605,-500.0,0.00035616,2]
[314541817,1708413038616,-500.0,0.00035616,2]
[314541818,1708413038625,-189.11707504,0.00035616,2]
[314541819,1708413038636,-500.0,0.00035616,2]
[314541820,1708413038645,-500.0,0.00035616,2]
[314541821,1708413038655,-500.0,0.00035616,2]
[314541822,1708413038664,-500.0,0.00035616,2]
[314541823,1708413038674,-500.0,0.00035616,2]
[314541824,1708413038686,-500.0,0.00035616,2]
[314541825,1708413038700,-500.0,0.00035616,2]
[314541826,1708413038709,-613.82520127,0.00035616,2]
[314541827,1708413038718,-500.0,0.00035616,2]
[314541828,1708413038728,-500.0,0.00035616,2]
[314541829,1708413038737,-500.0,0.00035616,2]
[314541830,1708413038747,-500.0,0.00035616,2]
[314541831,1708413038758,-500.0,0.00035616,2]
[314541832,1708413038769,-500.0,0.00035616,2]
[314541833,1708413038779,-500.0,0.00035616,2]
[314541834,1708413038789,-500.0,0.00035616,2]
[314541835,1708413038798,-500.0,0.00035616,2]
[314541836,1708413039003,-152.82891887,0.00035616,2]
[314541837,1708413039013,-500.0,0.00035616,2]
[314541838,1708413039022,-500.0,0.00035616,2]
[314541839,1708413039032,-500.0,0.00035616,2]
[314541840,1708413039041,-500.0,0.00035616,2]
[314541841,1708413039050,-500.0,0.00035616,2]
[314541842,1708413039060,-500.0,0.00035616,2]
[314541843,1708413039069,-500.0,0.00035616,2]
[314541844,1708413039078,-500.0,0.00035616,2]
[314541845,1708413039088,-500.0,0.00035616,2]
[314541846,1708413039101,-500.0,0.00035616,2]
[314541847,1708413039111,-500.0,0.00035616,2]
[314541848,1708413039120,-500.0,0.00035616,2]
[314541849,1708413039130,-500.0,0.00035616,2]
[314541850,1708413039139,-500.0,0.00035616,2]
[314541851,1708413039149,-521.10202953,0.00035616,2]
[314541852,1708413039158,-500.0,0.00035616,2]
[314541853,1708413039168,-500.0,0.00035616,2]
[314541854,1708413039178,-500.0,0.00035616,2]
[314541855,1708413039188,-500.0,0.00035616,2]
[314541856,1708413039197,-2176.97,0.00035616,2]
[314541857,1708413039207,-500.0,0.00035616,2]
[314541858,1708413039216,-500.0,0.00035616,2]
[314541859,1708413039225,-500.0,0.00035616,2]
[314541860,1708413039234,-500.0,0.00035616,2]
[314541861,1708413039244,-500.0,0.00035616,2]
[314541862,1708413039253,-500.0,0.00035616,2]
[314541863,1708413039262,-500.0,0.00035616,2]
[314541864,1708413039272,-1069.42,0.00035616,2]
[314541865,1708413039281,-500.0,0.00035616,2]
[314541866,1708413039290,-428.50428171,0.00035616,2]
[314541867,1708413039301,-500.0,0.00035616,2]
[314541868,1708413039311,-500.0,0.00035616,2]
[314541869,1708413039320,-500.0,0.00035616,2]
[314541870,1708413039330,-148.40275158,0.00035616,2]
[314541871,1708413039361,-351.59724842,0.00035616,2]
[314541872,1708413039371,-261.74311359,0.00035616,2]
[314541873,1708413039382,-676.61688641,0.00035616,2]
[314541874,1708413039391,-330.51201992,0.00035616,2]
[314541876,1708413040825,-169.48798008,0.00035616,2]
[314541877,1708413040834,-500.0,0.00035616,2]
[314541878,1708413040843,-648.5,0.00035616,2]
[314541879,1708413040852,-500.0,0.00035616,2]
[314541880,1708413040862,-367.37326009,0.00035616,2]
[314541881,1708413040882,-240.68673991,0.00035616,2]
[314541882,1708413040891,-147.88841818,0.00035616,2]
[314541883,1708413040906,-352.11158182,0.00035616,2]
[314541884,1708413040915,-500.0,0.00035616,2]
[314541885,1708413040924,-500.0,0.00035616,2]
[314541886,1708413040933,-500.0,0.00035616,2]
[314541887,1708413040942,-405.58169721,0.00035616,2]
[314541888,1708413040953,-94.41830279,0.00035616,2]
[314541889,1708413040962,-1078.48,0.00035616,2]
[314541890,1708413040971,-500.0,0.00035616,2]
[314541891,1708413040980,-610.77668493,0.00035616,2]
[314541892,1708413040989,-36.36105693,0.00035616,2]
[314541893,1708413041000,-710.10894307,0.00035616,2]
[314541894,1708413041010,-500.0,0.00035616,2]
[314541895,1708413041018,-161.09105693,0.00035616,2]
[314541896,1708413041717,-338.90894307,0.00035616,2]
[314541897,1708413041726,-180.40105693,0.00035616,2]
[314541898,1708413041774,-319.59894307,0.00035616,2]
[314541899,1708413041784,-84.09628518,0.00035616,2]
[314541907,1708413043206,-1113.07,0.00035606,10]
[314541908,1708413043216,-415.90371482,0.00035616,2]
[314541909,1708413043225,-500.0,0.00035616,2]
[314541910,1708413043235,-500.0,0.00035616,2]
[314541911,1708413043244,-899.47,0.00035616,2]
[314541912,1708413043257,-500.0,0.00035616,2]
[314541913,1708413043268,-500.0,0.00035616,2]
[314541914,1708413043279,-500.0,0.00035616,2]
[314541915,1708413043289,-746.18,0.00035616,2]
[314541916,1708413043298,-500.0,0.00035616,2]
[314541917,1708413043308,-500.0,0.00035616,2]
[314541918,1708413043317,-500.0,0.00035616,2]
[314541919,1708413043327,-500.0,0.00035616,2]
[314541920,1708413043337,-841.16,0.00035616,2]
[314541921,1708413043346,-518.22,0.00035616,2]
[314541922,1708413043356,-500.0,0.00035616,2]
[314541923,1708413043365,-500.0,0.00035616,2]
[314541924,1708413043374,-342.63227385,0.00035616,2]
[314541925,1708413043387,-157.36772615,0.00035616,2]
[314541926,1708413043397,-939.34,0.00035616,2]
[314541927,1708413043407,-2119.74,0.00035616,2]
[314541928,1708413043418,-757.44,0.00035616,2]
[314541929,1708413043427,-500.0,0.00035616,2]
[314541930,1708413043436,-500.0,0.00035616,2]
[314541931,1708413043445,-521.2,0.00035616,2]
[314541932,1708413043454,-687.32,0.00035616,2]
[314541933,1708413043463,-520.15,0.00035616,2]
[314541934,1708413043472,-1030.2,0.00035616,2]
[314541935,1708413043482,-500.0,0.00035616,2]
[314541937,1708413043493,-1324.46,0.00035616,2]
[314541938,1708413043502,-1316.27,0.00035616,2]
[314541939,1708413043512,-689.76,0.00035616,2]
[314541940,1708413043521,-1707.18,0.00035616,2]
[314541941,1708413043531,-500.0,0.00035616,2]
[314541942,1708413043541,-808.9,0.00035616,2]
[314541944,1708413043550,-500.0,0.00035616,2]
[314541946,1708413043560,-972.71,0.00035616,2]
[314541948,1708413043569,-500.0,0.00035616,2]
[314541950,1708413043579,-553.3,0.00035616,2]
[314541952,1708413043588,-5393.16598897,0.00035616,2]
[314541958,1708413043620,-7158.77401103,0.00035616,2]
[314541960,1708413043630,-602.89,0.00035616,2]
[314541963,1708413043639,-500.0,0.00035616,2]
[314541966,1708413043648,-500.0,0.00035616,2]
[314541968,1708413043658,-500.0,0.00035616,2]
[314541971,1708413043667,-866.44,0.00035616,2]
[314541974,1708413043677,-500.0,0.00035616,2]
[314541977,1708413043686,-500.0,0.00035616,2]
[314541980,1708413043700,-903.26,0.00035616,2]
[314541982,1708413043709,-500.0,0.00035616,2]
[314541984,1708413043718,-2650.84,0.00035616,2]
[314541986,1708413043727,-500.0,0.00035616,2]
[314541988,1708413043736,-500.0,0.00035616,2]
[314541990,1708413043745,-616.99,0.00035616,2]
[314541992,1708413043755,-916.31,0.00035616,2]
[314541994,1708413043764,-500.0,0.00035616,2]
[314541996,1708413043773,-500.0,0.00035616,2]
[314541998,1708413043783,-500.0,0.00035616,2]
[314542000,1708413043792,-279.04326156,0.00035616,2]
[314542003,1708413043813,-220.95673844,0.00035616,2]
[314542005,1708413043823,-500.0,0.00035616,2]
[314542007,1708413043832,-500.0,0.00035616,2]
[314542010,1708413043841,-500.0,0.00035616,2]
[314542011,1708413043851,-608.58,0.00035616,2]
[314542013,1708413043860,-847.68,0.00035616,2]
[314542015,1708413043871,-500.0,0.00035616,2]
[314542017,1708413043880,-500.0,0.00035616,2]
[314542020,1708413043890,-5217.97,0.00035616,2]
[314542022,1708413043899,-500.0,0.00035616,2]
[314542024,1708413043908,-530.95133655,0.00035616,2]
[314542026,1708413043917,-500.0,0.00035616,2]
[314542028,1708413043926,-1958.41,0.00035616,2]
[314542030,1708413043935,-567.19,0.00035616,2]
[314542032,1708413043945,-500.0,0.00035616,2]
[314542034,1708413043954,-500.0,0.00035616,2]
[314542036,1708413043963,-500.0,0.00035616,2]
[314542038,1708413043972,-500.0,0.00035616,2]
[314542040,1708413043981,-500.0,0.00035616,2]
[314542042,1708413043990,-2493.16,0.00035616,2]
[314542044,1708413043999,-500.0,0.00035616,2]
[314542045,1708413044009,-500.0,0.00035616,2]
[314542046,1708413044018,-500.0,0.00035616,2]
[314542047,1708413044027,-500.0,0.00035616,2]
[314542048,1708413044036,-500.0,0.00035616,2]
[314542049,1708413044045,-500.0,0.00035616,2]
[314542050,1708413044055,-500.0,0.00035616,2]
[314542051,1708413044065,-500.0,0.00035616,2]
[314542052,1708413044074,-1086.67,0.00035616,2]
[314542053,1708413044083,-613.53,0.00035616,2]
[314542054,1708413044095,-1749.24,0.00035616,2]
[314542055,1708413044107,-593.19,0.00035616,2]
[314542056,1708413044117,-500.0,0.00035616,2]
[314542057,1708413044127,-500.0,0.00035616,2]
[314542058,1708413044142,-368.27813754,0.00035616,2]
[314542059,1708413044152,-500.0,0.00035616,2]
[314542060,1708413044162,-1358.65,0.00035616,2]
[314542061,1708413044172,-500.0,0.00035616,2]
[314542062,1708413044183,-1133.13,0.00035616,2]
[314542063,1708413044195,-500.0,0.00035616,2]
[314542064,1708413044205,-500.0,0.00035616,2]
[314542065,1708413044215,-665.04,0.00035616,2]
[314542066,1708413044225,-546.9,0.00035616,2]
[314542067,1708413044234,-500.0,0.00035616,2]
[314542068,1708413044244,-500.0,0.00035616,2]
[314542069,1708413044253,-500.0,0.00035616,2]
[314542070,1708413044263,-500.0,0.00035616,2]
[314542071,1708413044273,-500.0,0.00035616,2]
[314542072,1708413044283,-927.16,0.00035616,2]
[314542073,1708413044292,-500.0,0.00035616,2]
[314542074,1708413044303,-617.55,0.00035616,2]
[314542075,1708413044312,-519.46,0.00035616,2]
[314542076,1708413044322,-500.0,0.00035616,2]
[314542077,1708413044331,-500.0,0.00035616,2]
[314542078,1708413044341,-500.0,0.00035616,2]
[314542079,1708413044350,-980.12,0.00035616,2]
[314542080,1708413044360,-500.0,0.00035616,2]
[314542081,1708413044370,-500.0,0.00035616,2]
[314542082,1708413044379,-500.0,0.00035616,2]
[314542083,1708413044389,-500.0,0.00035616,2]
[314542084,1708413044399,-500.0,0.00035616,2]
[314542085,1708413044409,-500.0,0.00035616,2]
[314542086,1708413044419,-681.09,0.00035616,2]
[314542087,1708413044428,-523.82,0.00035616,2]
[314542088,1708413044438,-4191.15,0.00035616,2]
[314542089,1708413044447,-500.0,0.00035616,2]
[314542090,1708413044458,-708.81,0.00035616,2]
[314542091,1708413044467,-864.95,0.00035616,2]
[314542092,1708413044476,-500.0,0.00035616,2]
[314542093,1708413044486,-500.0,0.00035616,2]
[314542094,1708413044495,-500.0,0.00035616,2]
[314542095,1708413044504,-500.0,0.00035616,2]
[314542096,1708413044513,-715.48,0.00035616,2]
[314542097,1708413044523,-500.0,0.00035616,2]
[314542098,1708413044532,-725.49,0.00035616,2]
[314542099,1708413044541,-627.74,0.00035616,2]
[314542100,1708413044550,-688.82,0.00035616,2]
[314542101,1708413044560,-2153.37,0.00035616,2]
[314542102,1708413044569,-845.62,0.00035616,2]
[314542103,1708413044578,-500.0,0.00035616,2]
[314542104,1708413044587,-1987.52,0.00035616,2]
[314542105,1708413044596,-500.0,0.00035616,2]
[314542106,1708413044606,-500.0,0.00035616,2]
[314542107,1708413044615,-1294.3,0.00035616,2]
[314542108,1708413044625,-1054.54,0.00035616,2]
[314542109,1708413044634,-642.69,0.00035616,2]
[314542110,1708413044643,-1045.83,0.00035616,2]
[314542111,1708413044652,-500.0,0.00035616,2]
[314542112,1708413044663,-500.0,0.00035616,2]
[314542113,1708413044673,-500.0,0.00035616,2]
[314542114,1708413044683,-589.72,0.00035616,2]
[314542115,1708413044692,-500.0,0.00035616,2]
[314542116,1708413044702,-500.0,0.00035616,2]
[314542117,1708413044711,-532.26,0.00035616,2]
[314542118,1708413044720,-500.0,0.00035616,2]
[314542119,1708413044729,-1939.26,0.00035616,2]
[314542120,1708413044738,-1092.43,0.00035616,2]
[314542121,1708413044747,-500.0,0.00035616,2]
[314542122,1708413044757,-500.0,0.00035616,2]
[314542123,1708413044766,-500.0,0.00035616,2]
[314542124,1708413044776,-200.2086266,0.00035616,2]
[314542125,1708413044785,-697.72,0.00035616,2]
[314542126,1708413044794,-500.0,0.00035616,2]
[314542127,1708413044804,-935.16,0.00035616,2]
[314542128,1708413044813,-823.35,0.00035616,2]
[314542129,1708413044822,-3663.12,0.00035616,2]
[314542130,1708413044832,-500.0,0.00035616,2]
[314542131,1708413044841,-500.0,0.00035616,2]
[314542132,1708413044851,-500.0,0.00035616,2]
[314542133,1708413044861,-560.29,0.00035616,2]
[314542134,1708413044871,-500.0,0.00035616,2]
[314542135,1708413044880,-500.0,0.00035616,2]
[314542136,1708413044889,-500.0,0.00035616,2]
[314542137,1708413044899,-775.73,0.00035616,2]
[314542138,1708413044908,-922.9,0.00035616,2]
[314542139,1708413044918,-500.0,0.00035616,2]
[314542140,1708413044927,-500.0,0.00035616,2]
[314542141,1708413044936,-954.03,0.00035616,2]
[314542142,1708413044945,-690.26,0.00035616,2]
[314542143,1708413044955,-500.0,0.00035616,2]
[314542144,1708413044965,-500.0,0.00035616,2]
[314542145,1708413044974,-549.62,0.00035616,2]
[314542146,1708413044983,-500.0,0.00035616,2]
[314542147,1708413044993,-567.34,0.00035616,2]
[314542148,1708413045002,-500.0,0.00035616,2]
[314542149,1708413045012,-648.17,0.00035616,2]
[314542150,1708413045266,-500.0,0.00035616,2]
[314542151,1708413045276,-783.27,0.00035616,2]
[314542152,1708413045286,-647.23,0.00035616,2]
[314542153,1708413045295,-1062.05,0.00035616,2]
[314542154,1708413045304,-500.0,0.00035616,2]
[314542155,1708413045313,-805.41,0.00035616,2]
[314542156,1708413045322,-500.0,0.00035616,2]
[314542157,1708413045330,-579.73545988,0.00035616,2]
[314542158,1708413045339,-500.0,0.00035616,2]
[314542159,1708413045348,-1760.45,0.00035616,2]
[314542160,1708413045357,-1291.57,0.00035616,2]
[314542161,1708413045366,-500.0,0.00035616,2]
[314542162,1708413045375,-1253.9,0.00035616,2]
[314542163,1708413045384,-500.0,0.00035616,2]
[314542164,1708413045392,-500.0,0.00035616,2]
[314542165,1708413045401,-519.08,0.00035616,2]
[314542166,1708413045410,-500.0,0.00035616,2]
[314542167,1708413045419,-500.0,0.00035616,2]
[314542168,1708413045428,-500.0,0.00035616,2]
[314542169,1708413045437,-500.0,0.00035616,2]
[314542170,1708413045446,-500.0,0.00035616,2]
[314542171,1708413045454,-2076.94,0.00035616,2]
[314542172,1708413045464,-500.0,0.00035616,2]
[314542173,1708413045473,-500.0,0.00035616,2]
[314542174,1708413045483,-834.55,0.00035616,2]
[314542175,1708413045492,-500.0,0.00035616,2]
[314542176,1708413045501,-987.23,0.00035616,2]
[314542177,1708413045510,-500.0,0.00035616,2]
[314542178,1708413045520,-500.0,0.00035616,2]
[314542179,1708413045529,-840.49,0.00035616,2]
[314542180,1708413045538,-751.8,0.00035616,2]
[314542181,1708413045548,-547.95,0.00035616,2]
[314542182,1708413045558,-500.0,0.00035616,2]
[314542183,1708413045568,-500.0,0.00035616,2]
[314542184,1708413045577,-560.8,0.00035616,2]
[314542185,1708413045587,-500.0,0.00035616,2]
[314542186,1708413045596,-500.0,0.00035616,2]
[314542187,1708413045606,-1512.26,0.00035616,2]
[314542188,1708413045616,-629.68,0.00035616,2]
[314542189,1708413045626,-500.0,0.00035616,2]
[314542190,1708413045636,-500.0,0.00035616,2]
[314542191,1708413045645,-500.0,0.00035616,2]
[314542192,1708413045655,-500.22,0.00035616,2]
[314542193,1708413045665,-500.0,0.00035616,2]
[314542194,1708413045675,-659.46,0.00035616,2]
[314542195,1708413045684,-500.0,0.00035616,2]
[314542196,1708413045694,-500.0,0.00035616,2]
[314542197,1708413045704,-500.0,0.00035616,2]
[314542198,1708413045714,-500.0,0.00035616,2]
[314542199,1708413045723,-150.0,0.0003565,2]
[314542200,1708413045732,-176.54488879,0.00035687,2]
[314542201,1708413045742,-154.49356672,0.000357,2]
[314542202,1708413045751,-1150.73957815,0.000357,2]
[314542203,1708413045760,-801.05917024,0.000357,2]
[314542204,1708413045771,-330.1253284,0.000357,2]
[314542205,1708413045780,-3059.85132726,0.000357,2]
[314542206,1708413045790,-1251.40581574,0.000357,2]
[314542207,1708413045800,-1223.8778,0.00035787,2]
[314542208,1708413045809,-23031.48710789,0.00035787,2]
[314542215,1708413046242,-573.9,0.00035616,2]
[314542216,1708413046252,-108.97115,0.00035787,2]
[314542217,1708413046269,-5194.7,0.00035787,2]
[314542218,1708413046431,-2115.14033717,0.00035787,2]
[314542219,1708413064036,206.0,0.0002943,2]
[314542220,1708413857872,-511.49597498,0.00028656,2]
[314542221,1708413857893,-230.48217846,0.00028657,2]
[314542222,1708413857913,-322.016811,0.00028658,2]
[314542223,1708413857932,-160.84088993,0.00028802,2]
[314542224,1708413857952,-422.16474559,0.000289,2]
[314542225,1708413857972,-641.57467239,0.00028901,2]
[314542226,1708413857993,-618.94,0.00029894,2]
[314542227,1708413858012,-150.0,0.00029898,2]
[314542228,1708413858032,-14112.48472765,0.00029899,2]
[314542229,1708414033135,-300.0,0.00028802,2]
[314542230,1708414033159,-975.52176962,0.00029899,2]
[314542231,1708414034174,-150.99188738,0.00029899,2]
[314542232,1708414147118,-750.0,0.00025,3]
[314542233,1708414147139,-800.0,0.00027,3]
[314542234,1708414147162,-266.48940296,0.00028999,2]
[314542235,1708414147183,-850.0,0.00029,3]
[314542236,1708414147205,-1647.49915553,0.00029899,2]
[314542237,1708414152102,-151.27923715,0.00029374,2]
[314542238,1708414152127,-2230.73230948,0.00029899,2]
[314542239,1708414152147,-3353.5496,0.000299,2]
[314542240,1708414152169,-360.0,0.00029973,2]
[314542241,1708414152189,-808.75984195,0.0003,4]
[314542242,1708414152209,-7018.12277642,0.00030114,2]
[314542243,1708414165094,-155.04309616,0.00029899,2]
[314542244,1708414165114,-16881.87722358,0.00030114,2]
[314542245,1708414165133,-200.0,0.00030317,2]
[314542246,1708414165152,-168.26,0.00030317,2]
[314542247,1708414165173,-927.56,0.00030364,10]
[314542248,1708414165192,-772.96,0.00030364,10]
[314542249,1708414165211,-358.04718248,0.00030372,4]
[314542250,1708414165230,-155.0,0.00030373,4]
[314542251,1708414165249,-31104.875996,0.00030374,2]
[314542252,1708414168470,627.04677195,0.000249,14]
[314542253,1708414168493,141.20252805,0.000249,14]
[314542271,1708414231464,-536.78,0.00030364,10]
[314542272,1708414231474,-554.67,0.00030364,10]
[314542273,1708414231484,-462.23,0.00030364,10]
[314542274,1708414231494,-385.19,0.00030364,10]
[314542275,1708414231503,-400.0,0.00030372,2]
[314542276,1708414231515,-150.0,0.00030372,2]
[314542277,1708414231525,-25685.3376099,0.00030373,2]